lending/lending_fUSD_20240810
["ID","MTS","AMOUNT","RATE_DAILY","PERIOD"]
[334591250,1723287052804,-1160.590552,0.00012539,2]
[334591251,1723287052822,-5260.001754,0.00012539,2]
[334591252,1723287052832,-576663.85255184,0.0001254,2]
[334591253,1723287052841,-685.99270042,0.0001254,2]
[334591254,1723287052851,-570.91787725,0.0001254,2]
[334591255,1723287052860,-203.0,0.0001254,2]
[334591256,1723287052869,-201.0,0.0001254,2]
[334591257,1723287052878,-201.0,0.0001254,2]
[334591258,1723287052888,-201.0,0.0001254,2]
[334591259,1723287052897,-698.0451919,0.0001254,2]
[334591260,1723287052907,-150.0,0.0001254,2]
[334591261,1723287052917,-173.63189449,0.0001254,2]
[334591262,1723287052926,-150.0,0.0001254,2]
[334591263,1723287052936,-150.0,0.0001254,2]
[334591264,1723287052945,-150.0,0.0001254,2]
[334591265,1723287052954,-150.0,0.0001254,2]
[334591266,1723287052964,-167.76,0.00012544,2]
[334591267,1723287052973,-155.0,0.00012581,2]
[334591268,1723287052983,-155.0,0.00012581,2]
[334591269,1723287052992,-155.0,0.00012581,2]
[334591270,1723287053002,-155.0,0.00012581,2]
[334591271,1723287053013,-200.0,0.00012581,2]
[334591272,1723287053022,-224.57238138,0.00012613,2]
[334591273,1723287053031,-155.0,0.00012613,2]
[334591274,1723287053041,-206.57217609,0.00012613,2]
[334591275,1723287053051,-203.15740941,0.00012613,2]
[334591276,1723287053060,-264.09408251,0.00012613,2]
[334591277,1723287053069,-305.14678487,0.00012665,2]
[334591278,1723287053079,-155.05503293,0.00012665,2]
[334591279,1723287053088,-1768.56191904,0.00012666,2]
[334591280,1723287053098,-872.3885199,0.00012666,2]
[334591281,1723287053107,-1447.79935598,0.00012666,2]
[334591282,1723287053117,-1768.56191904,0.00012666,2]
[334591283,1723287053126,-155.0679859,0.00012666,2]
[334591284,1723287053135,-155.0,0.00012666,2]
[334591285,1723287053234,-155.0,0.00012666,2]
[334591286,1723287053243,-698.0451919,0.00012666,2]
[334591287,1723287053253,-173.63189449,0.00012666,2]
[334591288,1723287053263,-155.0,0.00012681,2]
[334591289,1723287053272,-155.0,0.00012681,2]
[334591290,1723287053281,-155.0,0.00012681,2]
[334591291,1723287053291,-257.88535117,0.00012681,2]
[334591292,1723287053300,-155.67856311,0.00012681,2]
[334591293,1723287053310,-175.51049942,0.00012681,2]
[334591294,1723287053319,-202.76901504,0.00012681,2]
[334591295,1723287053328,-155.0,0.00012681,2]
[334591296,1723287053337,-160.39198288,0.00012681,2]
[334591297,1723287053347,-203.42662614,0.00012681,2]
[334591298,1723287053357,-155.0656866,0.00012681,2]
[334591299,1723287053367,-166.47822856,0.00012681,2]
[334591300,1723287053377,-155.07006706,0.00012681,2]
[334591301,1723287053386,-155.0,0.00012681,2]
[334591302,1723287053396,-198.52423216,0.00012681,2]
[334591303,1723287053409,-236.89983935,0.00012681,2]
[334591304,1723287053419,-207.73368938,0.0001269,2]
[334591305,1723287053429,-158.92944006,0.0001269,2]
[334591306,1723287053439,-218.69396992,0.0001269,2]
[334591307,1723287053450,-155.0,0.0001269,2]
[334591308,1723287053460,-200.59249794,0.0001269,2]
[334591309,1723287053469,-287.11577091,0.0001269,2]
[334591310,1723287053481,-200.12631272,0.0001269,2]
[334591311,1723287053491,-202.72168227,0.0001269,2]
[334591312,1723287053501,-159.59220403,0.0001269,2]
[334591313,1723287053511,-219.37004274,0.0001269,2]
[334591314,1723287053521,-155.0,0.0001269,2]
[334591315,1723287053531,-162.23523267,0.0001269,2]
[334591316,1723287053542,-155.06044827,0.0001269,2]
[334591317,1723287053551,-400.0,0.0001269,2]
[334591318,1723287053561,-158.2192293,0.0001269,2]
[334591319,1723287053571,-170.20600914,0.0001269,2]
[334591320,1723287053580,-150.0,0.0001269,2]
[334591321,1723287053589,-160.47891695,0.00012696,2]
[334591322,1723287053598,-155.97880612,0.00012696,2]
[334591323,1723287053608,-159.37462377,0.00012696,2]
[334591324,1723287053618,-166.76578094,0.00012696,2]
[334591325,1723287053627,-155.0,0.00012696,2]
[334591326,1723287053637,-186.62905308,0.00012696,2]
[334591327,1723287053647,-163.80187056,0.00012696,2]
[334591328,1723287053657,-349.42155841,0.00012696,2]
[334591329,1723287053666,-155.07024798,0.00012696,2]
[334591330,1723287053676,-155.06468429,0.00012696,2]
[334591331,1723287053686,-604.02,0.00012713,2]
[334591332,1723287053696,-474.26798705,0.00012749,2]
[334591333,1723287053706,-274.74497196,0.00012749,2]
[334591334,1723287053715,-272.76302921,0.00012749,2]
[334591335,1723287053725,-160.30737276,0.00012749,2]
[334591336,1723287053734,-155.42146489,0.00012749,2]
[334591337,1723287053743,-155.0,0.00012749,2]
[334591338,1723287053753,-183.54164324,0.00012749,2]
[334591339,1723287053764,-155.21485505,0.00012749,2]
[334591340,1723287053774,-295.88149592,0.00012749,2]
[334591341,1723287053784,-169.67153554,0.00012749,2]
[334591342,1723287053793,-156.0,0.00012767,2]
[334591343,1723287053803,-150.0,0.00012767,2]
[334591344,1723287053813,-150.0,0.00012767,2]
[334591345,1723287053822,-150.0,0.00012767,2]
[334591346,1723287053832,-150.0,0.00012767,2]
[334591347,1723287053841,-150.0,0.00012767,2]
[334591348,1723287053851,-150.0,0.00012767,2]
[334591349,1723287053860,-150.0,0.00012767,2]
[334591350,1723287053870,-300.0,0.00012767,2]
[334591351,1723287053879,-150.0,0.00012767,2]
[334591352,1723287053889,-698.0451919,0.00012792,2]
[334591353,1723287053899,-173.63189449,0.00012792,2]
[334591354,1723287053909,-500.0,0.00012814,2]
[334591355,1723287053918,-500.0,0.00012814,2]
[334591356,1723287053928,-1231.28853394,0.00012815,2]
[334591357,1723287053938,-150.0,0.00012817,2]
[334591358,1723287053948,-194.96645398,0.00012818,2]
[334591359,1723287053958,-155.0,0.00012818,2]
[334591360,1723287053968,-192.14605026,0.00012818,2]
[334591361,1723287053978,-155.0,0.00012818,2]
[334591362,1723287053987,-155.0,0.00012818,2]
[334591363,1723287053997,-155.0,0.00012826,2]
[334591364,1723287054007,-155.0,0.00012826,2]
[334591365,1723287054017,-155.0,0.00012826,2]
[334591366,1723287054027,-150.0,0.0001284,2]
[334591367,1723287054037,-793.0,0.00012847,2]
[334591368,1723287054046,-155.0,0.00012855,2]
[334591369,1723287054056,-155.0,0.00012855,2]
[334591370,1723287054067,-317.63431909,0.00012855,2]
[334591371,1723287054077,-389.39941235,0.00012883,2]
[334591372,1723287054086,-158.24348016,0.00012883,2]
[334591373,1723287054096,-179.99,0.00012893,2]
[334591374,1723287054106,-382.27247764,0.000129,2]
[334591375,1723287054116,-698.0451919,0.00012918,2]
[334591376,1723287054125,-173.63189449,0.00012918,2]
[334591377,1723287054135,-306.30964202,0.00012924,2]
[334591378,1723287054144,-155.0,0.00012928,2]
[334591379,1723287054154,-155.0,0.00012928,2]
[334591380,1723287054163,-150.0,0.0001299,2]
[334591381,1723287054173,-15417.37427886,0.00013,2]
[334591382,1723287054183,-155.08851975,0.00013,2]
[334591383,1723287054193,-522.0,0.00013,2]
[334591384,1723287054203,-1001.06,0.00013,2]
[334591385,1723287054214,-300.0,0.00013,2]
[334591386,1723287054224,-155.0,0.00013,2]
[334591387,1723287054234,-155.0,0.00013,2]
[334591388,1723287054244,-698.0451919,0.00013043,2]
[334591389,1723287054253,-173.63189449,0.00013043,2]
[334591390,1723287054263,-167.76,0.00013054,2]
[334591391,1723287054272,-150.0,0.00013094,2]
[334591392,1723287054282,-150.0,0.0001314,2]
[334591393,1723287054291,-500.0,0.00013152,2]
[334591394,1723287054300,-500.0,0.00013152,2]
[334591395,1723287054310,-500.0,0.00013152,2]
[334591396,1723287054319,-155.0,0.00013165,2]
[334591397,1723287054329,-698.0451919,0.00013169,2]
[334591398,1723287054338,-173.63189449,0.00013169,2]
[334591399,1723287054347,-313.0,0.0001321,2]
[334591400,1723287054357,-150.0,0.00013291,2]
[334591401,1723287054367,-698.0451919,0.00013295,2]
[334591402,1723287054376,-173.63189449,0.00013295,2]
[334591403,1723287054387,-2000.0,0.000133,2]
[334591404,1723287054396,-1275.45690478,0.00013303,2]
[334591405,1723287054410,-400.0,0.00013342,2]
[334591406,1723287054420,-400.0,0.00013342,2]
[334591407,1723287054430,-150.0,0.00013371,2]
[334591408,1723287054440,-150.0,0.00013371,2]
[334591409,1723287054451,-998.20168991,0.00013398,2]
[334591410,1723287054460,-698.0451919,0.00013421,2]
[334591411,1723287054470,-173.63189449,0.00013421,2]
[334591412,1723287054480,-150.0,0.00013441,2]
[334591413,1723287054490,-892.4875981,0.00013483,2]
[334591414,1723287054500,-1000.0,0.00013487,2]
[334591415,1723287054510,-793.0,0.00013489,2]
[334591416,1723287054520,-296.3,0.00013496,2]
[334591417,1723287054530,-2000.0,0.000135,2]
[334591418,1723287054539,-522.0,0.000135,2]
[334591419,1723287054548,-152.911068,0.00013511,2]
[334591420,1723287054558,-152.911068,0.00013511,2]
[334591421,1723287054567,-5800.0,0.00013512,2]
[334591422,1723287054576,-5800.0,0.00013512,2]
[334591423,1723287054586,-5800.0,0.00013512,2]
[334591424,1723287054595,-5800.0,0.0001352,2]
[334591425,1723287054605,-5800.0,0.0001352,2]
[334591426,1723287054614,-5800.0,0.0001352,2]
[334591427,1723287054624,-5800.0,0.0001352,2]
[334591428,1723287054634,-151.0,0.00013521,2]
[334591429,1723287054643,-151.45574,0.00013521,2]
[334591430,1723287054652,-151.0,0.00013521,2]
[334591431,1723287054662,-151.0,0.00013521,2]
[334591432,1723287054671,-151.0,0.00013521,2]
[334591433,1723287054681,-151.0,0.00013521,2]
[334591434,1723287054691,-151.0,0.00013521,2]
[334591435,1723287054700,-354.269672,0.00013521,2]
[334591436,1723287054710,-354.269672,0.00013521,2]
[334591437,1723287054720,-151.0,0.00013521,2]
[334591438,1723287054729,-151.0,0.00013521,2]
[334591439,1723287054738,-151.0,0.00013521,2]
[334591440,1723287054748,-151.0,0.00013521,2]
[334591441,1723287054757,-453.247836,0.00013521,2]
[334591442,1723287054772,-293.162429,0.00013521,2]
[334591443,1723287054864,-151.0,0.00013521,2]
[334591444,1723287054874,-453.247836,0.00013521,2]
[334591445,1723287054883,-329.551266,0.00013521,2]
[334591446,1723287054892,-222.862184,0.00013521,2]
[334591447,1723287054901,-329.551266,0.00013521,2]
[334591448,1723287054910,-210.344867,0.00013521,2]
[334591449,1723287054919,-210.344867,0.00013521,2]
[334591450,1723287054928,-151.0,0.00013521,2]
[334591451,1723287054937,-276.84688,0.00013521,2]
[334591452,1723287054946,-151.0,0.00013521,2]
[334591453,1723287054955,-151.0,0.00013521,2]
[334591454,1723287054965,-539.840086,0.00013521,2]
[334591455,1723287054973,-539.840086,0.00013521,2]
[334591456,1723287054983,-151.0,0.00013521,2]
[334591457,1723287054992,-158.732719,0.00013521,2]
[334591458,1723287055001,-174.069152,0.00013521,2]
[334591459,1723287055010,-201.256533,0.00013521,2]
[334591460,1723287055020,-1323.982044,0.00013521,2]
[334591461,1723287055029,-158.732719,0.00013521,2]
[334591462,1723287055038,-174.069152,0.00013521,2]
[334591463,1723287055047,-201.256533,0.00013521,2]
[334591464,1723287055056,-1323.982044,0.00013521,2]
[334591465,1723287055065,-151.0,0.00013521,2]
[334591466,1723287055074,-151.0,0.00013521,2]
[334591467,1723287055084,-198.944865,0.00013521,2]
[334591468,1723287055093,-198.944865,0.00013521,2]
[334591469,1723287055102,-342.480342,0.00013521,2]
[334591470,1723287055111,-342.480342,0.00013521,2]
[334591471,1723287055120,-157.537129,0.00013521,2]
[334591472,1723287055129,-157.537129,0.00013521,2]
[334591473,1723287055139,-151.0,0.00013521,2]
[334591474,1723287055148,-151.0,0.00013521,2]
[334591475,1723287055157,-151.0,0.00013521,2]
[334591476,1723287055166,-151.0,0.00013521,2]
[334591477,1723287055175,-228.365843,0.00013521,2]
[334591478,1723287055184,-151.0,0.00013521,2]
[334591479,1723287055194,-228.365843,0.00013521,2]
[334591480,1723287055204,-349.612158,0.00013521,2]
[334591481,1723287055213,-151.0,0.00013521,2]
[334591482,1723287055223,-349.612158,0.00013521,2]
[334591483,1723287055232,-200.526732,0.00013521,2]
[334591484,1723287055241,-200.526732,0.00013521,2]
[334591485,1723287055250,-922.277054,0.00013521,2]
[334591486,1723287055259,-922.277054,0.00013521,2]
[334591487,1723287055268,-417.333619,0.00013521,2]
[334591488,1723287055277,-417.333619,0.00013521,2]
[334591489,1723287055286,-1045.355205,0.00013521,2]
[334591490,1723287055295,-1045.355205,0.00013521,2]
[334591491,1723287055304,-151.0,0.00013521,2]
[334591492,1723287055314,-180.325739,0.00013521,2]
[334591493,1723287055323,-180.325739,0.00013521,2]
[334591494,1723287055331,-151.0,0.00013521,2]
[334591495,1723287055341,-151.417492,0.00013521,2]
[334591496,1723287055350,-398.309818,0.00013521,2]
[334591497,1723287055359,-398.309818,0.00013521,2]
[334591498,1723287055368,-151.0,0.00013521,2]
[334591499,1723287055377,-159.87612,0.00013521,2]
[334591500,1723287055386,-159.87612,0.00013521,2]
[334591501,1723287055395,-569.455933,0.00013521,2]
[334591502,1723287055409,-569.455933,0.00013521,2]
[334591503,1723287055418,-539.846076,0.00013521,2]
[334591504,1723287055427,-539.846076,0.00013521,2]
[334591505,1723287055436,-829.665441,0.00013521,2]
[334591506,1723287055446,-829.665441,0.00013521,2]
[334591507,1723287055455,-151.0,0.00013521,2]
[334591508,1723287055464,-151.0,0.00013521,2]
[334591509,1723287055473,-553.127259,0.00013521,2]
[334591510,1723287055483,-553.127259,0.00013521,2]
[334591511,1723287055493,-1066.31323,0.00013521,2]
[334591512,1723287055502,-1066.31323,0.00013521,2]
[334591513,1723287055511,-1238.80122,0.00013521,2]
[334591514,1723287055521,-1238.80122,0.00013521,2]
[334591515,1723287055531,-235.445978,0.00013521,2]
[334591516,1723287055540,-235.445978,0.00013521,2]
[334591517,1723287055549,-170.932081,0.00013521,2]
[334591518,1723287055559,-170.932081,0.00013521,2]
[334591519,1723287055567,-151.0,0.00013521,2]
[334591520,1723287055576,-342.99674,0.00013521,2]
[334591521,1723287055586,-151.0,0.00013521,2]
[334591522,1723287055595,-342.99674,0.00013521,2]
[334591523,1723287055604,-458.13805,0.00013521,2]
[334591524,1723287055613,-1160.590552,0.00013521,2]
[334591525,1723287055623,-458.13805,0.00013521,2]
[334591526,1723287055632,-1160.590552,0.00013521,2]
[334591527,1723287055641,-416.7568044,0.00013528,2]
[334591528,1723287055651,-2676.2718866,0.00013528,2]
[334591529,1723287055660,-480.6128944,0.00013528,2]
[334591530,1723287055669,-3513.4000928,0.00013528,2]
[334591531,1723287055678,-5800.0,0.00013529,2]
[334591532,1723287055687,-5800.0,0.00013529,2]
[334591533,1723287055696,-5800.0,0.00013529,2]
[334591534,1723287055706,-5800.0,0.00013529,2]
[334591535,1723287055714,-3513.4000928,0.00013529,2]
[334591536,1723287055724,-5800.0,0.00013537,2]
[334591537,1723287055733,-8500.0,0.00013537,2]
[334591538,1723287055743,-27398.06806094,0.00013537,2]
[334591539,1723287055753,-676.95801174,0.00013537,2]
[334591540,1723287055762,-8500.0,0.00013537,2]
[334591541,1723287055771,-5800.0,0.00013537,2]
[334591542,1723287055780,-22958.95528036,0.00013537,2]
[334591543,1723287055790,-499.66234219,0.00013537,2]
[334591544,1723287055799,-8500.0,0.00013537,2]
[334591545,1723287055808,-19509.1418683,0.00013537,2]
[334591546,1723287055818,-6036.11331962,0.00013537,2]
[334591547,1723287055827,-14160.91696042,0.00013537,2]
[334591548,1723287055836,-5800.0,0.00013537,2]
[334591549,1723287055845,-1580.15801091,0.00013537,2]
[334591550,1723287055855,-2832.18339209,0.00013537,2]
[334591551,1723287055864,-4543.45253013,0.00013537,2]
[334591552,1723287055873,-530.27556592,0.00013537,2]
[334591553,1723287055882,-13896.97444674,0.00013537,2]
[334591554,1723287055891,-7708.69050602,0.00013537,2]
[334591555,1723287055901,-5800.0,0.00013537,2]
[334591556,1723287055910,-13862.3613243,0.00013537,2]
[334591557,1723287055919,-152.911068,0.00013538,2]
[334591558,1723287055928,-152.911068,0.00013538,2]
[334591559,1723287055937,-152.911068,0.00013538,2]
[334591560,1723287055946,-152.911068,0.00013538,2]
[334591561,1723287055956,-151.0,0.00013538,2]
[334591562,1723287055965,-151.0,0.00013538,2]
[334591563,1723287055974,-151.0,0.00013538,2]
[334591564,1723287055983,-151.0,0.00013538,2]
[334591565,1723287055992,-151.0,0.00013538,2]
[334591566,1723287056001,-300.952745,0.00013538,2]
[334591567,1723287056010,-151.0,0.00013538,2]
[334591568,1723287056020,-151.0,0.00013538,2]
[334591569,1723287056029,-151.0,0.00013538,2]
[334591570,1723287056038,-151.0,0.00013538,2]
[334591571,1723287056047,-354.269672,0.00013538,2]
[334591572,1723287056056,-354.269672,0.00013538,2]
[334591573,1723287056065,-354.269672,0.00013538,2]
[334591574,1723287056075,-354.269672,0.00013538,2]
[334591575,1723287056084,-153.183627,0.00013538,2]
[334591576,1723287056093,-199.431833,0.00013538,2]
[334591577,1723287056102,-151.0,0.00013538,2]
[334591578,1723287056111,-151.0,0.00013538,2]
[334591579,1723287056120,-200.5485,0.00013538,2]
[334591580,1723287056130,-453.247836,0.00013538,2]
[334591581,1723287056139,-453.247836,0.00013538,2]
[334591582,1723287056148,-151.0,0.00013538,2]
[334591583,1723287056158,-453.247836,0.00013538,2]
[334591584,1723287056167,-151.0,0.00013538,2]
[334591585,1723287056176,-453.247836,0.00013538,2]
[334591586,1723287056185,-329.551266,0.00013538,2]
[334591587,1723287056194,-329.551266,0.00013538,2]
[334591588,1723287056285,-329.551266,0.00013538,2]
[334591589,1723287056295,-329.551266,0.00013538,2]
[334591590,1723287056304,-210.344867,0.00013538,2]
[334591591,1723287056314,-210.344867,0.00013538,2]
[334591592,1723287056323,-210.344867,0.00013538,2]
[334591593,1723287056332,-210.344867,0.00013538,2]
[334591594,1723287056341,-151.0,0.00013538,2]
[334591595,1723287056351,-151.0,0.00013538,2]
[334591596,1723287056360,-151.0,0.00013538,2]
[334591597,1723287056369,-227.121671,0.00013538,2]
[334591598,1723287056379,-151.0,0.00013538,2]
[334591599,1723287056388,-151.0,0.00013538,2]
[334591600,1723287056400,-539.840086,0.00013538,2]
[334591601,1723287056411,-539.840086,0.00013538,2]
[334591602,1723287056421,-539.840086,0.00013538,2]
[334591603,1723287056430,-539.840086,0.00013538,2]
[334591604,1723287056439,-155.320043,0.00013538,2]
[334591605,1723287056450,-158.732719,0.00013538,2]
[334591606,1723287056459,-174.069152,0.00013538,2]
[334591607,1723287056469,-158.732719,0.00013538,2]
[334591608,1723287056480,-174.069152,0.00013538,2]
[334591609,1723287056489,-201.256533,0.00013538,2]
[334591610,1723287056499,-201.256533,0.00013538,2]
[334591611,1723287056509,-1323.982044,0.00013538,2]
[334591612,1723287056519,-158.732719,0.00013538,2]
[334591613,1723287056528,-1323.982044,0.00013538,2]
[334591614,1723287056538,-158.732719,0.00013538,2]
[334591615,1723287056546,-174.069152,0.00013538,2]
[334591616,1723287056556,-174.069152,0.00013538,2]
[334591617,1723287056565,-201.256533,0.00013538,2]
[334591618,1723287056575,-201.256533,0.00013538,2]
[334591619,1723287056584,-1323.982044,0.00013538,2]
[334591620,1723287056594,-1323.982044,0.00013538,2]
[334591621,1723287056603,-151.0,0.00013538,2]
[334591622,1723287056612,-151.0,0.00013538,2]
[334591623,1723287056622,-151.0,0.00013538,2]
[334591624,1723287056632,-151.0,0.00013538,2]
[334591625,1723287056641,-198.944865,0.00013538,2]
[334591626,1723287056650,-198.944865,0.00013538,2]
[334591627,1723287056660,-198.944865,0.00013538,2]
[334591628,1723287056669,-198.944865,0.00013538,2]
[334591629,1723287056678,-342.480342,0.00013538,2]
[334591630,1723287056688,-342.480342,0.00013538,2]
[334591631,1723287056697,-342.480342,0.00013538,2]
[334591632,1723287056706,-342.480342,0.00013538,2]
[334591633,1723287056715,-157.537129,0.00013538,2]
[334591634,1723287056725,-157.537129,0.00013538,2]
[334591635,1723287056734,-157.537129,0.00013538,2]
[334591636,1723287056743,-157.537129,0.00013538,2]
[334591637,1723287056753,-151.0,0.00013538,2]
[334591638,1723287056762,-151.0,0.00013538,2]
[334591639,1723287056771,-151.447643,0.00013538,2]
[334591640,1723287056781,-151.0,0.00013538,2]
[334591641,1723287056790,-151.0,0.00013538,2]
[334591642,1723287056799,-151.0,0.00013538,2]
[334591643,1723287056808,-151.0,0.00013538,2]
[334591644,1723287056818,-228.365843,0.00013538,2]
[334591645,1723287056827,-228.365843,0.00013538,2]
[334591646,1723287056836,-151.0,0.00013538,2]
[334591647,1723287056845,-151.0,0.00013538,2]
[334591648,1723287056855,-228.365843,0.00013538,2]
[334591649,1723287056864,-228.36584117,0.00013538,2]
[334591650,1723287056874,-349.612158,0.00013538,2]
[334591651,1723287056883,-349.612158,0.00013538,2]
[334591652,1723287056892,-151.0,0.00013538,2]
[334591653,1723287056902,-151.0,0.00013538,2]
[334591654,1723287056911,-349.612158,0.00013538,2]
[334591655,1723287056920,-349.612164,0.00013538,2]
[334591656,1723287056929,-200.526732,0.00013538,2]
[334591657,1723287056939,-200.526732,0.00013538,2]
[334591658,1723287056948,-200.526732,0.00013538,2]
[334591659,1723287056957,-200.52674,0.00013538,2]
[334591660,1723287056967,-922.277054,0.00013538,2]
[334591661,1723287056976,-922.277054,0.00013538,2]
[334591662,1723287056986,-922.277054,0.00013538,2]
[334591663,1723287056995,-922.277044,0.00013538,2]
[334591664,1723287057004,-417.333619,0.00013538,2]
[334591665,1723287057014,-417.333619,0.00013538,2]
[334591666,1723287057023,-417.333619,0.00013538,2]
[334591667,1723287057033,-417.333618,0.00013538,2]
[334591668,1723287057042,-1045.355205,0.00013538,2]
[334591669,1723287057051,-1045.355205,0.00013538,2]
[334591670,1723287057060,-1045.355205,0.00013538,2]
[334591671,1723287057069,-1045.355211,0.00013538,2]
[334591672,1723287057079,-151.0,0.00013538,2]
[334591673,1723287057088,-151.0,0.00013538,2]
[334591674,1723287057097,-180.325739,0.00013538,2]
[334591675,1723287057107,-180.325739,0.00013538,2]
[334591676,1723287057116,-180.325739,0.00013538,2]
[334591677,1723287057126,-180.325747,0.00013538,2]
[334591678,1723287057135,-151.0,0.00013538,2]
[334591679,1723287057145,-151.0,0.00013538,2]
[334591680,1723287057154,-398.309818,0.00013538,2]
[334591681,1723287057164,-398.309818,0.00013538,2]
[334591682,1723287057173,-398.309818,0.00013538,2]
[334591683,1723287057183,-398.309812,0.00013538,2]
[334591684,1723287057192,-151.0,0.00013538,2]
[334591685,1723287057201,-151.0,0.00013538,2]
[334591686,1723287057211,-159.87612,0.00013538,2]
[334591687,1723287057220,-159.87612,0.00013538,2]
[334591688,1723287057230,-159.87612,0.00013538,2]
[334591689,1723287057238,-159.87612,0.00013538,2]
[334591690,1723287057247,-569.455933,0.00013538,2]
[334591691,1723287057257,-569.455933,0.00013538,2]
[334591692,1723287057266,-569.455933,0.00013538,2]
[334591693,1723287057275,-569.455927,0.00013538,2]
[334591694,1723287057284,-539.846076,0.00013538,2]
[334591695,1723287057293,-539.846076,0.00013538,2]
[334591696,1723287057303,-539.846076,0.00013538,2]
[334591697,1723287057312,-539.846067,0.00013538,2]
[334591698,1723287057321,-829.665441,0.00013538,2]
[334591699,1723287057331,-829.665441,0.00013538,2]
[334591700,1723287057340,-829.665441,0.00013538,2]
[334591701,1723287057350,-829.665444,0.00013538,2]
[334591702,1723287057359,-151.0,0.00013538,2]
[334591703,1723287057368,-151.0,0.00013538,2]
[334591704,1723287057377,-151.0,0.00013538,2]
[334591705,1723287057386,-553.127259,0.00013538,2]
[334591706,1723287057397,-553.127259,0.00013538,2]
[334591707,1723287057410,-553.127259,0.00013538,2]
[334591708,1723287057419,-553.12726,0.00013538,2]
[334591709,1723287057428,-1066.31323,0.00013538,2]
[334591710,1723287057438,-1066.31323,0.00013538,2]
[334591711,1723287057447,-1066.31323,0.00013538,2]
[334591712,1723287057456,-1066.313232,0.00013538,2]
[334591713,1723287057465,-1238.80122,0.00013538,2]
[334591714,1723287057477,-1238.80122,0.00013538,2]
[334591715,1723287057486,-1238.80122,0.00013538,2]
[334591716,1723287057495,-1238.801228,0.00013538,2]
[334591717,1723287057504,-235.445978,0.00013538,2]
[334591718,1723287057514,-235.445978,0.00013538,2]
[334591719,1723287057523,-235.445978,0.00013538,2]
[334591720,1723287057532,-235.445974,0.00013538,2]
[334591721,1723287057542,-170.932081,0.00013538,2]
[334591722,1723287057634,-170.932081,0.00013538,2]
[334591723,1723287057644,-170.932081,0.00013538,2]
[334591724,1723287057654,-170.932075,0.00013538,2]
[334591725,1723287057663,-151.0,0.00013538,2]
[334591726,1723287057672,-151.0,0.00013538,2]
[334591727,1723287057682,-342.99674,0.00013538,2]
[334591728,1723287057692,-342.99674,0.00013538,2]
[334591729,1723287057701,-151.0,0.00013538,2]
[334591730,1723287057711,-342.99674,0.00013538,2]
[334591731,1723287057720,-342.996741,0.00013538,2]
[334591732,1723287057730,-458.13805,0.00013538,2]
[334591733,1723287057739,-458.13805,0.00013538,2]
[334591734,1723287057748,-1160.590552,0.00013538,2]
[334591735,1723287057757,-458.13805,0.00013538,2]
[334591736,1723287057768,-458.138054,0.00013538,2]
[334591737,1723287057777,-1160.590562,0.00013538,2]
[334591738,1723287057786,-698.0451919,0.00013547,2]
[334591739,1723287057795,-173.63189449,0.00013547,2]
[334591740,1723287057804,-167.76,0.00013565,2]
[334591741,1723287057814,-172.82,0.00013582,2]
[334591742,1723287057823,-150.0,0.00013589,2]
[334591743,1723287057832,-150.0,0.00013591,2]
[334591744,1723287057842,-400.0,0.00013642,2]
[334591745,1723287057851,-150.0,0.00013648,2]
[334591746,1723287057861,-698.0451919,0.00013673,2]
[334591747,1723287057870,-173.63189449,0.00013673,2]
[334591748,1723287057879,-1021.51654495,0.00013698,2]
[334591749,1723287057889,-686.91534467,0.00013698,2]